[Event "98th Caplin Hastings Masters 2024-25"]
[Site "Hastings"]
[Date "2025.01.02"]
[Round "8.31"]
[White "Kennedy, Craig"]
[Black "Abrahams, Daniel"]
[Result "1/2-1/2"]
[ECO "D03"]
[WhiteElo "1851"]
[BlackElo "2072"]
[Annotator "NA RC"]
[PlyCount "89"]
[EventDate "2024.12.23"]
[EventType "swiss"]
[EventCountry "ENG"]
[SourceTitle "playchess.com"]
[Source "ChessBase"]
[SourceQuality "1"]
[TimeControl "5400+30"]

1. d4 {[%emt 0:00:03]} Nf6 {[%emt 0:00:08]} 2. Nf3 {[%emt 0:00:05]} e6 {[%emt 0:00:08]} 3. Bg5 {[%emt 0:00:05]} d5 {[%emt 0:00:43]} 4. Nbd2 {[%emt 0:00:19]} c5 {[%emt 0:01:10]} 5. e3 {[%emt 0:00:09]} Nc6 {[%emt 0:00:26]} 6. c3 {[%emt 0:00:15]} h6 {[%emt 0:01:44]} 7. Bh4 {[%emt 0:00:06]} cxd4 {[%emt 0:00:19]} 8. exd4 {[%emt 0:00:06]} Be7 {[%emt 0:00:21]} 9. Bxf6 {[%emt 0:01:02]} Bxf6 {[%emt 0:00:06]} 10. Bd3 {[%emt 0:00:06]} Bd7 {[%emt 0:00:23]} 11. Qe2 {[%emt 0:00:20]} Qc7 {[%emt 0:00:42]} 12. O-O {[%emt 0:02:52]} O-O {[%emt 0:00:11]} 13. Rfe1 {[%emt 0:00:13]} Rae8 {[%emt 0:03:39]} 14. Ne5 {[%emt 0:01:44]} Bxe5 {[%emt 0:00:48]} 15. dxe5 {[%emt 0:02:33]} f6 {[%emt 0:00:07]} 16. Nf3 {[%emt 0:13:31]} fxe5 {[%emt 0:01:59]} 17. Nxe5 {[%emt 0:00:07]} Nxe5 {[%emt 0:00:09]} 18. Qxe5 {[%emt 0:00:05]} Qb6 {[%emt 0:00:39]} 19. Re2 {[%emt 0:00:07]} Bb5 {[%emt 0:00:32]} 20. Rd1 {[%emt 0:03:32]} Qa6 {[%emt 0:01:42]} 21. Bxb5 {[%emt 0:03:22]} Qxb5 {[%emt 0:00:07]} 22. Rde1 {[%emt 0:00:18]} Rf6 {[%emt 0:02:18]} 23. Qd4 {[%emt 0:05:44]} b6 {[%emt 0:01:45]} 24. Rd2 {[%emt 0:04:37]} Rc8 {[%emt 0:03:38]} 25. Re3 {[%emt 0:11:13]} Qc4 26. Qxc4 {[%emt 0:02:05]} Rxc4 {[%emt 0:05:13]} 27. f3 {[%emt 0:01:29]} Kf7 {[%emt 0:00:55]} 28. Kf2 {[%emt 0:00:23]} g5 {[%emt 0:00:58]} 29. Ke2 {[%emt 0:02:00]} g4 {[%emt 0:00:31]} 30. Rd4 {[%emt 0:01:01]} gxf3+ {[%emt 0:00:31]} 31. Rxf3 {[%emt 0:00:10]} Rc6 {[%emt 0:01:37]} 32. Rxf6+ {[%emt 0:00:53]} Kxf6 {[%emt 0:00:09]} 33. Rf4+ {[%emt 0:02:03]} Kg5 {[%emt 0:03:33]} 34. Rf7 {[%emt 0:00:39]} d4 {[%emt 0:04:53]} 35. cxd4 {[%emt 0:01:00]} Rc2+ {[%emt 0:00:05]} 36. Kf3 {[%emt 0:00:31]} a5 {[%emt 0:02:47]} 37. b3 {[%emt 0:01:17]} Rxa2 {[%emt 0:00:11]} 38. Rb7 {[%emt 0:00:15]} Ra3 {[%emt 0:01:40]} 39. Rxb6 {[%emt 0:01:24]} a4 {[%emt 0:00:07]} 40. Rxe6 {[%emt 0:02:01]} Rxb3+ {[%emt 0:00:09]} 41. Ke4 {[%emt 0:00:37]} Rb2 {[%emt 0:00:11]} 42. Ra6 {[%emt 0:02:12]} Rxg2 {[%emt 0:00:29]} 43. h4+ {[%emt 0:02:56]} Kh5 {[%emt 0:07:39]} 44. Rxa4 {[%emt 0:01:41]} Kxh4 {[%emt 0:00:18]} 45. Ke5 {[%emt 0:02:16]} 1/2-1/2

[Event "98th Caplin Hastings Masters 2024-25"]
[Site "Hastings"]
[Date "2025.01.02"]
[Round "8.32"]
[White "Burrows, Martin P"]
[Black "Jukes, Sam"]
[Result "0-1"]
[ECO "B31"]
[WhiteElo "2042"]
[BlackElo "1911"]
[Annotator "NA RC"]
[PlyCount "74"]
[EventDate "2024.12.23"]
[EventType "swiss"]
[EventCountry "ENG"]
[SourceTitle "playchess.com"]
[Source "ChessBase"]
[SourceQuality "1"]
[TimeControl "5400+30"]

1. e4 {[%emt 0:00:06]} c5 {[%emt 0:00:07]} 2. Nf3 {[%emt 0:00:12]} Nc6 {[%emt 0:00:14]} 3. Bb5 {[%emt 0:00:20]} g6 {[%emt 0:00:16]} 4. Bxc6 {[%emt 0:00:10]} dxc6 {[%emt 0:00:28]} 5. d3 {[%emt 0:00:22]} Bg7 {[%emt 0:00:16]} 6. h3 {[%emt 0:00:31]} e5 {[%emt 0:01:36]} 7. O-O {[%emt 0:00:28]} Ne7 {[%emt 0:05:08]} 8. Be3 {[%emt 0:06:43]} b6 {[%emt 0:00:28]} 9. Qd2 {[%emt 0:00:12]} h6 {[%emt 0:01:33]} 10. Nc3 {[%emt 0:04:57]} Be6 {[%emt 0:07:06]} 11. a4 {[%emt 0:05:22]} a5 {[%emt 0:02:42]} 12. Nh2 {[%emt 0:03:15]} f5 {[%emt 0:05:49]} 13. exf5 {[%emt 0:04:06]} Nxf5 {[%emt 1:11:17]} 14. b3 {[%emt 0:12:06]} Qd7 {[%emt 0:00:00]} 15. Ne4 {[%emt 0:01:08]} g5 {[%emt 0:00:00]} 16. Rfe1 {[%emt 0:08:26]} O-O {[%emt 0:00:00]} 17. Nf1 {[%emt 0:01:01]} Nh4 {[%emt 0:00:00]} 18. Bxg5 {[%emt 0:18:58]} hxg5 {[%emt 0:00:00]} 19. Qxg5 {[%emt 0:00:21]} Nf5 {[%emt 0:00:00]} 20. Ne3 {[%emt 0:01:13]} Nd4 {[%emt 0:00:00]} 21. h4 {[%emt 0:02:51]} Qd8 {[%emt 0:00:00]} 22. Qg3 {[%emt 0:01:50]} Qe8 {[%emt 0:00:00]} 23. Ng5 {[%emt 0:04:01]} Rf4 {[%emt 0:00:00]} 24. f3 {[%emt 0:01:58]} Bf5 {[%emt 0:00:00]} 25. Qf2 {[%emt 0:02:50]} Be6 {[%emt 0:00:00]} 26. Qg3 {[%emt 0:02:23]} Qg6 {[%emt 0:00:00]} 27. Kf2 {[%emt 0:00:48]} Bf6 {[%emt 0:00:00]} 28. Rh1 {[%emt 0:00:52]} Ra7 {[%emt 0:00:00]} 29. c3 {[%emt 0:04:14]} Nf5 {[%emt 0:01:26]} 30. Nxf5 {[%emt 0:05:07]} Bxf5 {[%emt 0:00:05]} 31. Qh2 {[%emt 0:00:22]} Bxd3 {[%emt 0:01:33]} 32. g3 {[%emt 0:01:40]} Rf5 {[%emt 0:01:16]} 33. Rad1 {[%emt 0:00:35]} Rd7 {[%emt 0:01:26]} 34. g4 {[%emt 0:00:56]} Rf4 {[%emt 0:02:04]} 35. Ne6 {[%emt 0:00:01]} Rxf3+ {[%emt 0:00:17]} 36. Ke1 {[%emt 0:02:38]} Qe4+ {[%emt 0:00:16]} 37. Kd2 {[%emt 0:00:32]} Qe3# {[%emt 0:00:07]} 0-1

[Event "98th Caplin Hastings Masters 2024-25"]
[Site "Hastings"]
[Date "2025.01.02"]
[Round "8.33"]
[White "Keely, Leo A"]
[Black "Muir, Andrew J"]
[Result "0-1"]
[ECO "B65"]
[WhiteElo "1899"]
[BlackElo "2214"]
[Annotator "RC"]
[PlyCount "96"]
[EventDate "2024.12.23"]
[EventType "swiss"]
[EventCountry "ENG"]
[SourceTitle "playchess.com"]
[Source "ChessBase"]
[SourceQuality "1"]
[TimeControl "5400+30"]

1. e4 {[%emt 0:00:29]} c5 {[%emt 0:00:20]} 2. Nf3 {[%emt 0:01:34]} Nc6 {[%emt 0:00:30]} 3. d4 {[%emt 0:00:11]} cxd4 {[%emt 0:00:06]} 4. Nxd4 {[%emt 0:00:18]} Nf6 {[%emt 0:00:05]} 5. Nc3 {[%emt 0:00:21]} d6 {[%emt 0:00:04]} 6. Bg5 {[%emt 0:04:23]} e6 {[%emt 0:00:22]} 7. Qd2 {[%emt 0:00:33]} Be7 {[%emt 0:00:19]} 8. O-O-O {[%emt 0:00:39]} O-O {[%emt 0:00:06]} 9. f4 {[%emt 0:01:50]} Nxd4 {[%emt 0:00:29]} 10. Qxd4 {[%emt 0:00:35]} Qa5 {[%emt 0:00:03]} 11. Kb1 {[%emt 0:06:11]} Rd8 {[%emt 0:00:13]} 12. Be2 {[%emt 0:04:11]} Bd7 {[%emt 0:00:30]} 13. Bf3 {[%emt 0:06:33]} Bc6 {[%emt 0:02:03]} 14. Rhf1 {[%emt 0:04:47]} Rd7 {[%emt 0:19:42]} 15. Qe3 {[%emt 0:05:37]} h6 {[%emt 0:01:44]} 16. Bh4 {[%emt 0:03:31]} Nxe4 {[%emt 0:10:32]} 17. Nxe4 {[%emt 0:00:23]} Bxh4 {[%emt 0:06:45]} 18. Rxd6 {[%emt 0:05:50]} Rxd6 {[%emt 0:09:27]} 19. Nxd6 {[%emt 0:00:12]} Qc7 {[%emt 0:00:19]} 20. Ne4 {[%emt 0:03:48]} Rd8 {[%emt 0:05:51]} 21. g4 {[%emt 0:04:52]} Be7 {[%emt 0:01:50]} 22. Ng3 {[%emt 0:06:35]} Bxf3 {[%emt 0:02:51]} 23. Qxf3 {[%emt 0:00:08]} Rd2 {[%emt 0:00:05]} 24. Rc1 {[%emt 0:08:26]} Rxh2 {[%emt 0:00:06]} 25. Ne4 {[%emt 0:00:26]} Qc4 {[%emt 0:09:21]} 26. Qd3 {[%emt 0:06:21]} Qxd3 {[%emt 0:02:46]} 27. cxd3 {[%emt 0:00:08]} f5 {[%emt 0:00:07]} 28. gxf5 {[%emt 0:04:32]} exf5 {[%emt 0:00:05]} 29. Rc8+ {[%emt 0:00:23]} Kh7 {[%emt 0:03:01]} 30. Nc3 {[%emt 0:00:29]} Bd6 {[%emt 0:05:36]} 31. Nd5 {[%emt 0:01:16]} Rf2 {[%emt 0:00:15]} 32. Rd8 {[%emt 0:00:13]} Bxf4 {[%emt 0:00:29]} 33. Rd7 {[%emt 0:00:07]} Be5 {[%emt 0:03:46]} 34. Rxb7 {[%emt 0:00:53]} h5 {[%emt 0:00:46]} 35. Rb4 {[%emt 0:00:57]} a5 {[%emt 0:01:14]} 36. Rh4 {[%emt 0:01:06]} Kh6 {[%emt 0:16:42]} 37. b4 {[%emt 0:01:33]} g5 {[%emt 0:00:00]} 38. Rc4 {[%emt 0:00:11]} axb4 {[%emt 0:00:00]} 39. d4 {[%emt 0:01:13]} Bg3 {[%emt 0:00:00]} 40. Rc6+ {[%emt 0:00:50]} Kg7 {[%emt 0:00:00]} 41. Nxb4 {[%emt 0:00:12]} h4 {[%emt 0:00:00]} 42. Nd3 {[%emt 0:01:16]} Rf1+ {[%emt 0:00:00]} 43. Kc2 {[%emt 0:00:12]} h3 {[%emt 0:00:00]} 44. Nc5 {[%emt 0:00:13]} h2 {[%emt 0:00:00]} 45. Ne6+ {[%emt 0:00:06]} Kf6 {[%emt 0:00:00]} 46. Ra6 {[%emt 0:07:19]} h1=Q {[%emt 0:00:00]} 47. Nf4+ {[%emt 0:00:07]} Kf7 {[%emt 0:00:00]} 48. Ra7+ {[%emt 0:00:19]} Ke8 {[%emt 0:00:00]} 0-1

[Event "98th Caplin Hastings Masters 2024-25"]
[Site "Hastings"]
[Date "2025.01.02"]
[Round "8.34"]
[White "Dette, Jan"]
[Black "Pick, Freddie"]
[Result "1-0"]
[ECO "B23"]
[WhiteElo "2102"]
[BlackElo "1874"]
[Annotator "NA RC"]
[PlyCount "75"]
[EventDate "2024.12.23"]
[EventType "swiss"]
[EventCountry "ENG"]
[SourceTitle "playchess.com"]
[Source "ChessBase"]
[SourceQuality "1"]
[TimeControl "5400+30"]

1. e4 {[%emt 0:00:02]} c5 {[%emt 0:00:10]} 2. Nc3 {[%emt 0:00:10]} Nc6 {[%emt 0:00:03]} 3. Bb5 {[%emt 0:00:05]} Nd4 {[%emt 0:00:03]} 4. Bc4 {[%emt 0:00:10]} e6 {[%emt 0:00:14]} 5. Nge2 {[%emt 0:01:30]} a6 {[%emt 0:01:57]} 6. a4 {[%emt 0:02:43]} Nf6 {[%emt 0:00:20]} 7. O-O {[%emt 1:29:20]} d5 {[%emt 0:00:11]} 8. exd5 {[%emt 0:00:00]} exd5 {[%emt 0:00:15]} 9. Ba2 {[%emt 0:00:00]} Bd6 {[%emt 0:01:10]} 10. d3 {[%emt 0:00:00]} O-O {[%emt 0:02:52]} 11. Nxd4 {[%emt 0:00:00]} cxd4 {[%emt 0:00:04]} 12. Ne2 {[%emt 0:00:00]} Qb6 {[%emt 0:08:22]} 13. Bg5 {[%emt 0:00:00]} Ng4 {[%emt 0:13:51]} 14. g3 {[%emt 0:00:00]} h6 {[%emt 0:04:24]} 15. Bd2 {[%emt 0:00:00]} Be6 {[%emt 0:01:44]} 16. a5 {[%emt 0:00:00]} Qa7 {[%emt 0:02:40]} 17. h3 {[%emt 0:00:00]} Nf6 {[%emt 0:01:38]} 18. Kg2 {[%emt 0:00:00]} Rac8 {[%emt 0:02:26]} 19. Bb3 {[%emt 0:00:00]} Nd7 {[%emt 0:02:11]} 20. f4 {[%emt 0:00:00]} f5 {[%emt 0:01:35]} 21. Qe1 {[%emt 0:00:00]} Rfe8 {[%emt 0:03:03]} 22. Qf2 {[%emt 0:00:00]} Bc5 {[%emt 0:01:54]} 23. Ra4 {[%emt 0:00:00]} b5 {[%emt 0:02:53]} 24. axb6 {[%emt 0:00:00]} Bxb6 {[%emt 0:00:37]} 25. Bb4 {[%emt 0:00:00]} Bc5 {[%emt 0:03:29]} 26. Rfa1 {[%emt 0:00:00]} Rc6 {[%emt 0:03:58]} 27. Bxc5 {[%emt 0:00:00]} Nxc5 {[%emt 0:00:45]} 28. Nxd4 {[%emt 0:00:00]} Nxb3 {[%emt 0:01:47]} 29. Nxc6 {[%emt 0:00:00]} Qxf2+ {[%emt 0:00:10]} 30. Kxf2 {[%emt 0:00:00]} Nxa1 {[%emt 0:00:03]} 31. Rxa1 {[%emt 0:00:00]} Ra8 {[%emt 0:01:01]} 32. Ra5 {[%emt 0:00:00]} Kf7 {[%emt 0:02:02]} 33. b3 {[%emt 0:00:00]} Kf6 {[%emt 0:03:31]} 34. Nb4 {[%emt 0:00:00]} Rb8 {[%emt 0:00:57]} 35. Nxd5+ {[%emt 0:00:00]} Bxd5 {[%emt 0:00:12]} 36. Rxd5 {[%emt 0:00:00]} Rc8 {[%emt 0:00:08]} 37. c4 {[%emt 0:00:00]} Rc6 {[%emt 0:01:28]} 38. c5 {[%emt 0:00:00]} 1-0

[Event "98th Caplin Hastings Masters 2024-25"]
[Site "Hastings"]
[Date "2025.01.02"]
[Round "8.35"]
[White "Alcindor, Samuel"]
[Black "Bharat Kumar, Balahari"]
[Result "0-1"]
[ECO "A10"]
[WhiteElo "1927"]
[BlackElo "2063"]
[Annotator "NA RC"]
[PlyCount "140"]
[EventDate "2024.12.23"]
[EventType "swiss"]
[EventCountry "ENG"]
[SourceTitle "playchess.com"]
[Source "ChessBase"]
[SourceQuality "1"]
[TimeControl "5400+30"]

1. c4 {[%emt 0:00:22]} b6 {[%emt 0:00:50]} 2. Nc3 {[%emt 0:00:10]} Bb7 {[%emt 0:00:11]} 3. e4 {[%emt 0:00:13]} e5 {[%emt 0:01:48]} 4. Nge2 {[%emt 0:01:01]} Nc6 {[%emt 0:00:31]} 5. d3 {[%emt 0:00:45]} g6 {[%emt 0:06:45]} 6. g3 {[%emt 0:01:16]} Bg7 {[%emt 0:00:11]} 7. Bg2 {[%emt 0:00:11]} Nge7 {[%emt 0:01:42]} 8. O-O {[%emt 0:04:02]} O-O {[%emt 0:05:57]} 9. f4 {[%emt 0:09:44]} f5 {[%emt 0:08:27]} 10. fxe5 {[%emt 0:12:47]} Nxe5 {[%emt 0:02:17]} 11. d4 {[%emt 0:10:05]} Nxc4 {[%emt 0:17:19]} 12. Qb3 {[%emt 0:00:07]} d5 {[%emt 0:05:02]} 13. Nxd5 {[%emt 0:00:24]} Nxd5 {[%emt 0:08:25]} 14. Qxc4 {[%emt 0:04:46]} fxe4 {[%emt 0:03:18]} 15. Rxf8+ {[%emt 0:01:58]} Kxf8 {[%emt 0:18:24]} 16. Bxe4 {[%emt 0:04:27]} Qd6 {[%emt 0:02:23]} 17. Bg5 {[%emt 0:16:10]} Re8 {[%emt 0:02:57]} 18. Rf1+ {[%emt 0:01:06]} Kg8 {[%emt 0:00:05]} 19. Nc3 {[%emt 0:02:02]} c6 {[%emt 0:01:46]} 20. Bg2 {[%emt 0:03:44]} Kh8 {[%emt 0:03:49]} 21. Rf7 {[%emt 0:08:48]} Bc8 {[%emt 0:04:33]} 22. Ne4 {[%emt 0:04:26]} Qe6 {[%emt 0:01:46]} 23. Rxa7 {[%emt 0:01:16]} Qg4 {[%emt 0:02:54]} 24. Ra8 {[%emt 0:11:30]} Qd1+ {[%emt 0:00:23]} 25. Bf1 {[%emt 0:00:09]} Bxd4+ {[%emt 0:00:25]} 26. Kh1 {[%emt 0:00:31]} Rf8 {[%emt 0:00:47]} 27. Rxc8 {[%emt 0:01:23]} Rxc8 {[%emt 0:00:17]} 28. Nc3 {[%emt 0:00:36]} Nxc3 {[%emt 0:00:41]} 29. bxc3 {[%emt 0:00:10]} Rf8 {[%emt 0:00:26]} 30. Bf4 {[%emt 0:00:50]} Qf3+ {[%emt 0:00:26]} 31. Bg2 {[%emt 0:00:01]} Qd1+ {[%emt 0:00:04]} 32. Bf1 {[%emt 0:01:30]} Qf3+ {[%emt 0:01:06]} 33. Bg2 {[%emt 0:00:00]} Qxc3 {[%emt 0:00:06]} 34. Qxc3 {[%emt 0:00:10]} Bxc3 {[%emt 0:00:02]} 35. Bxc6 {[%emt 0:00:09]} Bd4 {[%emt 0:01:07]} 36. a4 {[%emt 0:00:15]} Kg7 {[%emt 0:00:26]} 37. Kg2 {[%emt 0:00:04]} Rc8 {[%emt 0:00:45]} 38. Bb5 {[%emt 0:00:53]} Rc2+ {[%emt 0:00:06]} 39. Kh3 {[%emt 0:00:59]} Kf6 {[%emt 0:00:32]} 40. g4 {[%emt 0:00:26]} g5 {[%emt 0:00:50]} 41. Bg3 {[%emt 0:00:28]} h6 {[%emt 0:00:12]} 42. Bd7 {[%emt 0:00:14]} Be5 {[%emt 0:00:21]} 43. Bf5 {[%emt 0:01:15]} Rc3 {[%emt 0:00:05]} 44. Kg2 {[%emt 0:00:22]} Bxg3 {[%emt 0:00:06]} 45. hxg3 {[%emt 0:00:05]} Ra3 {[%emt 0:00:06]} 46. Bd7 {[%emt 0:00:06]} Ke5 {[%emt 0:00:06]} 47. Kf2 {[%emt 0:00:26]} Kd4 {[%emt 0:00:07]} 48. Bb5 {[%emt 0:00:10]} Kc5 {[%emt 0:00:26]} 49. Ke2 {[%emt 0:01:48]} Rxg3 {[%emt 0:00:07]} 50. Bd7 {[%emt 0:00:04]} Ra3 {[%emt 0:00:40]} 51. Kd2 {[%emt 0:00:07]} Kb4 {[%emt 0:00:14]} 52. Kc2 {[%emt 0:00:18]} Rxa4 {[%emt 0:00:34]} 53. Kd3 {[%emt 0:00:04]} Ra1 {[%emt 0:00:53]} 54. Ke4 {[%emt 0:00:22]} Rf1 {[%emt 0:00:06]} 55. Ke5 {[%emt 0:00:26]} Kc5 {[%emt 0:00:05]} 56. Bf5 {[%emt 0:00:06]} b5 {[%emt 0:00:08]} 57. Kf6 {[%emt 0:00:04]} b4 {[%emt 0:00:10]} 58. Kg6 {[%emt 0:00:06]} Rh1 {[%emt 0:00:09]} 59. Be6 {[%emt 0:00:13]} Kd4 {[%emt 0:00:13]} 60. Bf7 {[%emt 0:00:14]} Kc3 {[%emt 0:00:18]} 61. Kg7 {[%emt 0:00:06]} b3 {[%emt 0:01:00]} 62. Bh5 {[%emt 0:00:07]} b2 {[%emt 0:00:07]} 63. Kxh6 {[%emt 0:00:54]} b1=Q {[%emt 0:01:16]} 64. Kxg5 {[%emt 0:00:06]} Qe4 {[%emt 0:00:34]} 65. Bg6 {[%emt 0:00:15]} Qe5+ {[%emt 0:00:25]} 66. Bf5 {[%emt 0:00:08]} Qe7+ {[%emt 0:00:19]} 67. Kf4 {[%emt 0:00:16]} Rf1+ {[%emt 0:00:05]} 68. Kg3 {[%emt 0:00:05]} Qe3+ {[%emt 0:00:07]} 69. Kg2 {[%emt 0:00:16]} Qf2+ {[%emt 0:00:21]} 70. Kh3 {[%emt 0:00:06]} Rh1# {[%emt 0:00:05]} 0-1

[Event "98th Caplin Hastings Masters 2024-25"]
[Site "Hastings"]
[Date "2025.01.02"]
[Round "8.36"]
[White "Vaidyanathan, Adithya"]
[Black "Lishoy Gengis Paratazham, Dildarav"]
[Result "1-0"]
[ECO "A55"]
[WhiteElo "1904"]
[BlackElo "2037"]
[Annotator "NA RC"]
[PlyCount "119"]
[EventDate "2024.12.23"]
[EventType "swiss"]
[EventCountry "ENG"]
[SourceTitle "playchess.com"]
[Source "ChessBase"]
[SourceQuality "1"]
[TimeControl "5400+30"]

1. d4 {[%emt 0:00:03]} d6 {[%emt 0:00:05]} 2. Nf3 {[%emt 0:00:09]} Nf6 {[%emt 0:00:06]} 3. c4 {[%emt 0:00:04]} Nbd7 {[%emt 0:00:10]} 4. Nc3 {[%emt 0:01:03]} e5 {[%emt 0:00:06]} 5. e4 {[%emt 0:00:07]} c6 {[%emt 0:00:04]} 6. Be3 {[%emt 0:00:12]} Be7 {[%emt 0:00:12]} 7. Be2 {[%emt 0:00:38]} a6 {[%emt 0:00:08]} 8. O-O {[%emt 0:02:42]} O-O {[%emt 0:02:59]} 9. h3 {[%emt 0:00:18]} b5 {[%emt 0:14:16]} 10. a3 {[%emt 0:02:54]} Bb7 {[%emt 0:03:17]} 11. Qc2 {[%emt 0:01:04]} Rc8 {[%emt 0:02:34]} 12. Rfd1 {[%emt 0:03:45]} Qc7 {[%emt 0:06:05]} 13. Rac1 {[%emt 0:03:34]} Qb8 {[%emt 0:01:15]} 14. Qb1 {[%emt 0:03:37]} Rfd8 {[%emt 0:03:26]} 15. b4 {[%emt 0:08:43]} h6 {[%emt 0:12:01]} 16. dxe5 {[%emt 0:04:50]} dxe5 {[%emt 0:06:07]} 17. c5 {[%emt 0:00:19]} a5 {[%emt 0:04:28]} 18. Nh4 {[%emt 0:01:43]} axb4 {[%emt 0:01:04]} 19. axb4 {[%emt 0:01:49]} Nf8 {[%emt 0:06:06]} 20. Nf5 {[%emt 0:00:57]} Qc7 {[%emt 0:00:07]} 21. Bxb5 {[%emt 0:10:12]} Ng6 {[%emt 0:36:24]} 22. Bc4 {[%emt 0:00:45]} Bf8 {[%emt 0:00:00]} 23. Qb3 {[%emt 0:01:32]} Nh8 {[%emt 0:00:00]} 24. f3 {[%emt 0:03:21]} Kh7 {[%emt 0:00:00]} 25. Bf2 {[%emt 0:10:10]} Rd7 {[%emt 0:00:00]} 26. Rxd7 {[%emt 0:02:48]} Qxd7 {[%emt 0:00:00]} 27. Rd1 {[%emt 0:00:19]} Qc7 {[%emt 0:00:00]} 28. Nd6 {[%emt 0:00:47]} Bxd6 {[%emt 0:00:00]} 29. cxd6 {[%emt 0:00:08]} Qd7 {[%emt 0:00:00]} 30. Na4 {[%emt 0:00:17]} Rb8 {[%emt 0:00:00]} 31. Ba7 {[%emt 0:01:17]} Rd8 {[%emt 0:00:00]} 32. Bb6 {[%emt 0:00:59]} Rb8 {[%emt 0:00:00]} 33. Nc5 {[%emt 0:00:31]} Qe8 {[%emt 0:00:00]} 34. Bc7 {[%emt 0:00:31]} Ra8 {[%emt 0:00:00]} 35. Nxb7 {[%emt 0:00:15]} Qc8 {[%emt 0:00:00]} 36. Nc5 {[%emt 0:01:20]} Nh5 {[%emt 0:00:00]} 37. Ba5 {[%emt 0:00:26]} Nf4 {[%emt 0:00:00]} 38. d7 {[%emt 0:00:06]} Qf8 {[%emt 0:00:00]} 39. d8=Q {[%emt 0:00:25]} Rxd8 {[%emt 0:00:00]} 40. Bxd8 {[%emt 0:00:37]} f5 {[%emt 0:00:00]} 41. exf5 {[%emt 0:00:07]} Qxf5 {[%emt 0:00:00]} 42. Bd3 {[%emt 0:00:11]} Nxd3 {[%emt 0:00:00]} 43. Qxd3 {[%emt 0:00:07]} Qxd3 {[%emt 0:00:00]} 44. Rxd3 {[%emt 0:00:11]} Nf7 {[%emt 0:00:00]} 45. Rd7 {[%emt 0:00:15]} Nxd8 {[%emt 0:00:00]} 46. Rxd8 {[%emt 0:00:08]} g5 {[%emt 0:00:00]} 47. Rc8 {[%emt 0:00:12]} h5 {[%emt 0:00:00]} 48. Rxc6 {[%emt 0:00:06]} g4 {[%emt 0:00:00]} 49. hxg4 {[%emt 0:00:10]} hxg4 {[%emt 0:00:00]} 50. fxg4 {[%emt 0:00:09]} e4 {[%emt 0:00:00]} 51. Nxe4 {[%emt 0:00:10]} Kg7 {[%emt 0:00:00]} 52. b5 {[%emt 0:00:11]} Kf7 {[%emt 0:00:00]} 53. b6 {[%emt 0:00:07]} Ke7 {[%emt 0:00:00]} 54. b7 {[%emt 0:00:08]} Kd7 {[%emt 0:00:00]} 55. Rc5 {[%emt 0:00:07]} Ke6 {[%emt 0:00:00]} 56. b8=Q {[%emt 0:00:08]} Kf7 {[%emt 0:00:00]} 57. Rc6 {[%emt 0:00:15]} Ke7 {[%emt 0:00:00]} 58. Ng5 {[%emt 0:00:23]} Kd7 {[%emt 0:00:00]} 59. Qc8+ {[%emt 0:00:11]} Ke7 {[%emt 0:00:00]} 60. Re6# {[%emt 0:00:05]} 1-0

[Event "98th Caplin Hastings Masters 2024-25"]
[Site "Hastings"]
[Date "2025.01.02"]
[Round "8.37"]
[White "White, Stuart A"]
[Black "Swiatkowski, Dominik"]
[Result "1/2-1/2"]
[ECO "D24"]
[WhiteElo "2017"]
[BlackElo "1744"]
[Annotator "NA RC"]
[PlyCount "56"]
[EventDate "2024.12.23"]
[EventType "swiss"]
[EventCountry "ENG"]
[SourceTitle "playchess.com"]
[Source "ChessBase"]
[SourceQuality "1"]
[TimeControl "5400+30"]

1. d4 {[%emt 0:00:01]} Nf6 {[%emt 0:00:04]} 2. c4 {[%emt 0:00:03]} e6 {[%emt 0:00:04]} 3. Nf3 {[%emt 0:00:02]} d5 {[%emt 0:00:04]} 4. Nc3 {[%emt 0:00:02]} dxc4 {[%emt 0:00:04]} 5. e4 {[%emt 0:05:23]} b5 {[%emt 0:00:08]} 6. e5 {[%emt 0:00:03]} Nd5 {[%emt 0:00:02]} 7. Nxb5 {[%emt 0:00:36]} Nb6 {[%emt 0:00:04]} 8. Be2 {[%emt 0:01:39]} Nc6 {[%emt 0:00:06]} 9. O-O {[%emt 0:00:49]} Be7 {[%emt 0:02:46]} 10. a4 {[%emt 0:04:38]} a6 {[%emt 0:19:51]} 11. Na3 {[%emt 0:05:46]} Na5 {[%emt 0:01:43]} 12. Bd2 {[%emt 0:07:05]} Nb3 {[%emt 0:01:19]} 13. Nxc4 {[%emt 0:08:33]} Nxa1 {[%emt 0:09:19]} 14. Qxa1 {[%emt 0:05:16]} Nxc4 {[%emt 0:03:25]} 15. Bxc4 {[%emt 0:00:06]} Bb7 {[%emt 0:00:20]} 16. Qd1 {[%emt 0:04:54]} c5 {[%emt 0:06:02]} 17. Be3 {[%emt 0:01:24]} Rc8 {[%emt 0:02:24]} 18. Qe2 {[%emt 0:16:40]} Bxf3 {[%emt 0:09:24]} 19. gxf3 {[%emt 0:00:06]} cxd4 {[%emt 0:00:05]} 20. Rd1 {[%emt 0:00:28]} Qc7 {[%emt 0:02:12]} 21. Rxd4 {[%emt 0:00:33]} Bc5 {[%emt 0:01:52]} 22. Rg4 {[%emt 0:07:44]} Bxe3 {[%emt 0:21:13]} 23. Qxe3 {[%emt 0:00:37]} a5 {[%emt 0:00:53]} 24. Bb5+ {[%emt 0:02:27]} Kf8 {[%emt 0:00:40]} 25. Rc4 {[%emt 0:01:13]} Qd8 {[%emt 0:04:36]} 26. Rd4 {[%emt 0:07:40]} Qc7 {[%emt 0:01:00]} 27. Rc4 {[%emt 0:00:04]} Qd8 {[%emt 0:02:08]} 28. Rd4 {[%emt 0:00:52]} Qc7 {[%emt 0:00:05]} 1/2-1/2

[Event "98th Caplin Hastings Masters 2024-25"]
[Site "Hastings"]
[Date "2025.01.02"]
[Round "8.38"]
[White "Suez-Panama, Gilles"]
[Black "Buckland, Louis"]
[Result "1/2-1/2"]
[ECO "A05"]
[WhiteElo "1979"]
[BlackElo "1856"]
[Annotator "NA RC"]
[PlyCount "46"]
[EventDate "2024.12.23"]
[EventType "swiss"]
[EventCountry "ENG"]
[SourceTitle "playchess.com"]
[Source "ChessBase"]
[SourceQuality "1"]
[TimeControl "5400+30"]

1. Nf3 {[%emt 0:00:03]} d5 {[%emt 0:00:03]} 2. g3 {[%emt 0:00:14]} Nf6 {[%emt 0:00:05]} 3. Bg2 {[%emt 0:00:15]} e6 {[%emt 0:00:36]} 4. d3 {[%emt 0:00:29]} Be7 {[%emt 0:02:03]} 5. Nbd2 {[%emt 0:02:55]} b6 {[%emt 0:04:17]} 6. O-O {[%emt 0:02:24]} Bb7 {[%emt 0:00:29]} 7. c3 {[%emt 0:02:54]} O-O {[%emt 0:00:55]} 8. Qc2 {[%emt 0:02:03]} c5 {[%emt 0:01:44]} 9. e4 {[%emt 0:02:14]} Nc6 {[%emt 0:03:53]} 10. e5 {[%emt 0:05:28]} Nd7 {[%emt 0:00:19]} 11. Re1 {[%emt 0:00:30]} Qc7 {[%emt 0:05:16]} 12. d4 {[%emt 0:00:40]} cxd4 {[%emt 0:04:07]} 13. cxd4 {[%emt 0:00:14]} Rfc8 {[%emt 0:00:37]} 14. Qc3 {[%emt 0:07:47]} Nb4 {[%emt 0:03:22]} 15. Qxc7 {[%emt 0:01:07]} Rxc7 {[%emt 0:00:03]} 16. Rd1 {[%emt 0:00:19]} a5 {[%emt 0:07:41]} 17. a3 {[%emt 0:02:22]} Nc2 {[%emt 0:12:53]} 18. Rb1 {[%emt 0:00:32]} Ba6 {[%emt 0:00:20]} 19. Bf1 {[%emt 0:01:18]} Bxf1 {[%emt 0:01:30]} 20. Nxf1 {[%emt 0:05:25]} f6 {[%emt 0:03:37]} 21. exf6 {[%emt 0:03:40]} Bxf6 {[%emt 0:03:06]} 22. Bf4 {[%emt 0:02:04]} Rc6 {[%emt 0:00:58]} 23. h4 {[%emt 0:10:28]} h6 {[%emt 0:08:45]} 1/2-1/2